[Event "December 5 Early 2023"]
[Site "https://www.chess.com"]
[Date "2023.12.05"]
[Round "1"]
[White "Navara, David"]
[Black "Yaniuk, Volodymyr"]
[Result "1-0"]
[Board "25"]
[TimeControl "180+1"]
[WhiteFideId "309095"]
[BlackFideId "14133083"]
[WhiteElo "2966"]
[BlackElo "2507"]
[WhiteTeam "CZE"]
[BlackTeam "UKR"]
[WhiteClock "0:01:02"]
[BlackClock "0:00:12"]

1. Nf3 {[%clk 0:03:00]}  d5 {[%clk 0:02:58]} 2. c4 {[%clk 0:03:00]}  e6 {[%clk 0:02:58]} 3. e3 {[%clk 0:02:59]}  Nf6 {[%clk 0:02:58]} 4. b3 {[%clk 0:03:00]}  c5 {[%clk 0:02:57]} 5. Bb2 {[%clk 0:03:00]}  Be7 {[%clk 0:02:57]} 6. cxd5 {[%clk 0:02:55]}  exd5 {[%clk 0:02:58]} 7. Bb5+ {[%clk 0:02:47]}  Bd7 {[%clk 0:02:53]} 8. Bxd7+ {[%clk 0:02:47]}  Nbxd7 {[%clk 0:02:54]} 9. O-O {[%clk 0:02:43]}  O-O {[%clk 0:02:54]} 10. Nc3 {[%clk 0:02:37]}  Rc8 {[%clk 0:02:51]} 11. Rc1 {[%clk 0:02:34]}  Bd6 {[%clk 0:02:47]} 12. d4 {[%clk 0:02:31]}  cxd4 {[%clk 0:02:40]} 13. Qxd4 {[%clk 0:02:11]}  Bc5 {[%clk 0:02:37]} 14. Qd3 {[%clk 0:02:10]}  Nb6 {[%clk 0:02:31]} 15. Rfd1 {[%clk 0:02:10]}  h6 {[%clk 0:02:24]} 16. h3 {[%clk 0:01:58]}  Re8 {[%clk 0:02:19]} 17. Ne2 {[%clk 0:01:53]}  Bf8 {[%clk 0:02:12]} 18. Nf4 {[%clk 0:01:49]}  Rxc1 {[%clk 0:02:10]} 19. Rxc1 {[%clk 0:01:50]}  Ne4 {[%clk 0:02:05]} 20. Rd1 {[%clk 0:01:32]}  Nc5 {[%clk 0:01:47]} 21. Qf5 {[%clk 0:01:25]}  Re7 {[%clk 0:01:14]} 22. Nxd5 {[%clk 0:01:00]}  Rd7 {[%clk 0:01:08]} 23. Ne5 {[%clk 0:01:00]}  Rxd5 {[%clk 0:00:31]} 24. Qxf7+ {[%clk 0:01:00]}  Kh7 {[%clk 0:00:30]} 25. Qf5+ {[%clk 0:01:01]}  Kg8 {[%clk 0:00:29]} 26. Qf7+ {[%clk 0:01:01]}  Kh7 {[%clk 0:00:29]} 27. Rxd5 {[%clk 0:01:02]}  Nxd5 {[%clk 0:00:21]} 28. Ng6 {[%clk 0:01:02]}  Bd6 {[%clk 0:00:12]} 29. Qxg7# {[%clk 0:01:02]} 1-0

[Event "December 5 Early 2023"]
[Site "https://www.chess.com"]
[Date "2023.12.05"]
[Round "1"]
[White "Eugene, Floryan"]
[Black "Galchenko, Matvey"]
[Result "0-1"]
[Board "26"]
[TimeControl "180+1"]
[WhiteFideId "20694784"]
[BlackFideId "24175480"]
[WhiteElo "2507"]
[BlackElo "2960"]
[WhiteTeam "FRA"]
[BlackTeam "FID"]
[WhiteClock "0:00:01"]
[BlackClock "0:00:10"]

1. d4 {[%clk 0:03:00]}  d5 {[%clk 0:02:57]} 2. c4 {[%clk 0:03:00]}  e6 {[%clk 0:02:57]} 3. Nc3 {[%clk 0:03:00]}  c6 {[%clk 0:02:57]} 4. e3 {[%clk 0:02:55]}  f5 {[%clk 0:02:57]} 5. b3 {[%clk 0:02:51]}  Nf6 {[%clk 0:02:56]} 6. Bb2 {[%clk 0:02:52]}  Bd6 {[%clk 0:02:55]} 7. g3 {[%clk 0:02:48]}  O-O {[%clk 0:02:46]} 8. Bg2 {[%clk 0:02:48]}  Ne4 {[%clk 0:02:44]} 9. Nge2 {[%clk 0:02:47]}  Nd7 {[%clk 0:02:43]} 10. O-O {[%clk 0:02:43]}  Qg5 {[%clk 0:02:18]} 11. Qd3 {[%clk 0:02:15]}  Ndf6 {[%clk 0:02:07]} 12. f3 {[%clk 0:02:12]}  Nxc3 {[%clk 0:02:07]} 13. Bxc3 {[%clk 0:02:13]}  Bd7 {[%clk 0:02:06]} 14. a4 {[%clk 0:02:05]}  Rae8 {[%clk 0:02:00]} 15. a5 {[%clk 0:02:02]}  a6 {[%clk 0:01:57]} 16. Rfe1 {[%clk 0:01:51]}  Qh6 {[%clk 0:01:49]} 17. b4 {[%clk 0:01:42]}  dxc4 {[%clk 0:01:45]} 18. Qd2 {[%clk 0:01:36]}  Nd5 {[%clk 0:01:41]} 19. Nf4 {[%clk 0:01:33]}  g5 {[%clk 0:01:38]} 20. Ne2 {[%clk 0:01:25]}  g4 {[%clk 0:01:10]} 21. Nf4 {[%clk 0:01:23]}  gxf3 {[%clk 0:01:09]} 22. Bxf3 {[%clk 0:01:21]}  Re7 {[%clk 0:01:03]} 23. Rac1 {[%clk 0:00:31]}  Rg7 {[%clk 0:00:56]} 24. Bg2 {[%clk 0:00:32]}  Rg4 {[%clk 0:00:51]} 25. Re2 {[%clk 0:00:23]}  Qg7 {[%clk 0:00:43]} 26. Kh1 {[%clk 0:00:18]}  Qe7 {[%clk 0:00:43]} 27. Rb1 {[%clk 0:00:17]}  h5 {[%clk 0:00:40]} 28. Bh3 {[%clk 0:00:16]}  Rg5 {[%clk 0:00:39]} 29. Bg2 {[%clk 0:00:12]}  h4 {[%clk 0:00:39]} 30. gxh4 {[%clk 0:00:13]}  Rg4 {[%clk 0:00:39]} 31. h5 {[%clk 0:00:13]}  Nxf4 {[%clk 0:00:36]} 32. exf4 {[%clk 0:00:14]}  Bxf4 {[%clk 0:00:37]} 33. Qe1 {[%clk 0:00:11]}  Kh7 {[%clk 0:00:29]} 34. h3 {[%clk 0:00:09]}  Rg5 {[%clk 0:00:27]} 35. d5 {[%clk 0:00:09]}  cxd5 {[%clk 0:00:26]} 36. Bxd5 {[%clk 0:00:09]}  Rxh5 {[%clk 0:00:23]} 37. Bg2 {[%clk 0:00:05]}  Qg5 {[%clk 0:00:13]} 38. Qf2 {[%clk 0:00:06]}  Bc6 {[%clk 0:00:13]} 39. Kg1 {[%clk 0:00:01]}  Rxh3 {[%clk 0:00:12]} 40. Kf1 {[%clk 0:00:01]}  Bxg2+ {[%clk 0:00:11]} 41. Qxg2 {[%clk 0:00:01]}  Qxg2+ {[%clk 0:00:12]} 42. Kxg2 {[%clk 0:00:02]}  Rxc3 {[%clk 0:00:13]} 43. Rf2 {[%clk 0:00:02]}  Rg3+ {[%clk 0:00:10]} 44. Kf1 {[%clk 0:00:02]}  e5 {[%clk 0:00:11]} 45. Rc1 {[%clk 0:00:01]}  Bxc1 {[%clk 0:00:11]} 46. Rxf5 {[%clk 0:00:01]}  Rxf5+ {[%clk 0:00:11]} 47. Ke1 {[%clk 0:00:01]}  Be3 {[%clk 0:00:10]} 0-1

[Event "December 5 Early 2023"]
[Site "https://www.chess.com"]
[Date "2023.12.05"]
[Round "1"]
[White "Khismatullin, Denis"]
[Black "Estrada Nieto, Julian"]
[Result "1-0"]
[Board "31"]
[TimeControl "180+1"]
[WhiteFideId "4142578"]
[BlackFideId "5101018"]
[WhiteElo "2941"]
[BlackElo "2504"]
[WhiteTeam "RUS"]
[BlackTeam "ESP"]
[WhiteClock "0:01:49"]
[BlackClock "0:01:04"]

1. e4 {[%clk 0:03:00]}  e5 {[%clk 0:02:59]} 2. Nf3 {[%clk 0:02:55]}  Nc6 {[%clk 0:02:59]} 3. g3 {[%clk 0:02:55]}  Nf6 {[%clk 0:02:58]} 4. d3 {[%clk 0:02:55]}  d5 {[%clk 0:02:58]} 5. exd5 {[%clk 0:02:55]}  Nxd5 {[%clk 0:02:57]} 6. Bg2 {[%clk 0:02:56]}  Bc5 {[%clk 0:02:54]} 7. O-O {[%clk 0:02:56]}  O-O {[%clk 0:02:54]} 8. c3 {[%clk 0:02:55]}  Bg4 {[%clk 0:02:51]} 9. h3 {[%clk 0:02:53]}  Bh5 {[%clk 0:02:51]} 10. Re1 {[%clk 0:02:52]}  f5 {[%clk 0:02:33]} 11. b4 {[%clk 0:02:42]}  Bd6 {[%clk 0:02:14]} 12. Qb3 {[%clk 0:02:36]}  Bf7 {[%clk 0:02:10]} 13. Ng5 {[%clk 0:02:34]}  Nf6 {[%clk 0:02:04]} 14. Nxf7 {[%clk 0:02:32]}  Rxf7 {[%clk 0:02:04]} 15. Bg5 {[%clk 0:02:29]}  h6 {[%clk 0:02:00]} 16. Bd5 {[%clk 0:02:23]}  Qe7 {[%clk 0:01:31]} 17. Bxf6 {[%clk 0:02:19]}  Qxf6 {[%clk 0:01:31]} 18. Bxf7+ {[%clk 0:02:18]}  Qxf7 {[%clk 0:01:31]} 19. Nd2 {[%clk 0:02:18]}  Re8 {[%clk 0:01:29]} 20. Qxf7+ {[%clk 0:02:16]}  Kxf7 {[%clk 0:01:28]} 21. a4 {[%clk 0:02:15]}  a5 {[%clk 0:01:27]} 22. b5 {[%clk 0:02:12]}  Ne7 {[%clk 0:01:25]} 23. Nc4 {[%clk 0:02:09]}  Nd5 {[%clk 0:01:23]} 24. Nxa5 {[%clk 0:01:59]}  b6 {[%clk 0:01:19]} 25. Nc4 {[%clk 0:01:56]}  Nxc3 {[%clk 0:01:20]} 26. a5 {[%clk 0:01:56]}  Nxb5 {[%clk 0:01:18]} 27. axb6 {[%clk 0:01:52]}  cxb6 {[%clk 0:01:04]} 28. Reb1 {[%clk 0:01:49]} 1-0

[Event "December 5 Early 2023"]
[Site "https://www.chess.com"]
[Date "2023.12.05"]
[Round "1"]
[White "Bold, Andre"]
[Black "Svane, Rasmus"]
[Result "0-1"]
[Board "36"]
[TimeControl "180+1"]
[WhiteFideId "16208471"]
[BlackFideId "4657101"]
[WhiteElo "2501"]
[BlackElo "2930"]
[WhiteTeam "GER"]
[BlackTeam "GER"]
[WhiteClock "0:00:41"]
[BlackClock "0:00:11"]

1. Nf3 {[%clk 0:03:00]}  d5 {[%clk 0:02:56]} 2. e3 {[%clk 0:03:00]}  Nf6 {[%clk 0:02:54]} 3. b3 {[%clk 0:03:00]}  Bf5 {[%clk 0:02:51]} 4. Bb2 {[%clk 0:03:00]}  e6 {[%clk 0:02:50]} 5. d3 {[%clk 0:03:00]}  h6 {[%clk 0:02:49]} 6. Be2 {[%clk 0:03:00]}  Bd6 {[%clk 0:02:44]} 7. Nbd2 {[%clk 0:02:57]}  Nbd7 {[%clk 0:02:40]} 8. Nf1 {[%clk 0:02:49]}  Qe7 {[%clk 0:02:32]} 9. Ng3 {[%clk 0:02:49]}  Bh7 {[%clk 0:02:32]} 10. O-O {[%clk 0:02:49]}  O-O {[%clk 0:02:31]} 11. c4 {[%clk 0:02:46]}  c6 {[%clk 0:02:30]} 12. Rc1 {[%clk 0:02:41]}  Rfe8 {[%clk 0:02:25]} 13. d4 {[%clk 0:02:33]}  a5 {[%clk 0:02:15]} 14. Ne5 {[%clk 0:02:26]}  Ne4 {[%clk 0:01:56]} 15. Nxd7 {[%clk 0:02:24]}  Qxd7 {[%clk 0:01:56]} 16. Nxe4 {[%clk 0:02:23]}  Bxe4 {[%clk 0:01:57]} 17. Bd3 {[%clk 0:02:22]}  Bxd3 {[%clk 0:01:47]} 18. Qxd3 {[%clk 0:02:23]}  a4 {[%clk 0:01:47]} 19. Qc2 {[%clk 0:02:13]}  Ra7 {[%clk 0:01:33]} 20. Bc3 {[%clk 0:02:07]}  b5 {[%clk 0:01:24]} 21. cxd5 {[%clk 0:02:03]}  cxd5 {[%clk 0:01:23]} 22. Qd2 {[%clk 0:02:02]}  Qe7 {[%clk 0:01:20]} 23. g3 {[%clk 0:01:59]}  Rc8 {[%clk 0:01:14]} 24. Bb2 {[%clk 0:01:56]}  Rca8 {[%clk 0:01:12]} 25. Rc2 {[%clk 0:01:52]}  h5 {[%clk 0:00:53]} 26. h4 {[%clk 0:01:51]}  Qf6 {[%clk 0:00:52]} 27. Kg2 {[%clk 0:01:50]}  Qf5 {[%clk 0:00:51]} 28. Rfc1 {[%clk 0:01:45]}  Bf8 {[%clk 0:00:46]} 29. Qe2 {[%clk 0:01:42]}  axb3 {[%clk 0:00:45]} 30. axb3 {[%clk 0:01:41]}  b4 {[%clk 0:00:45]} 31. Qd2 {[%clk 0:01:20]}  Qe4+ {[%clk 0:00:44]} 32. Kg1 {[%clk 0:01:19]}  Ra2 {[%clk 0:00:41]} 33. Qe2 {[%clk 0:01:18]}  Qf5 {[%clk 0:00:41]} 34. Qd2 {[%clk 0:01:17]}  g6 {[%clk 0:00:32]} 35. Kg2 {[%clk 0:01:16]}  Qe4+ {[%clk 0:00:32]} 36. Kg1 {[%clk 0:01:16]}  Kg7 {[%clk 0:00:30]} 37. Qe2 {[%clk 0:01:15]}  Be7 {[%clk 0:00:30]} 38. Qd2 {[%clk 0:01:14]}  g5 {[%clk 0:00:29]} 39. hxg5 {[%clk 0:01:13]}  Bxg5 {[%clk 0:00:29]} 40. Qe2 {[%clk 0:01:12]}  h4 {[%clk 0:00:28]} 41. gxh4 {[%clk 0:01:08]}  Qxh4 {[%clk 0:00:27]} 42. Qf3 {[%clk 0:01:07]}  Rh8 {[%clk 0:00:24]} 43. Kf1 {[%clk 0:01:06]}  Rh6 {[%clk 0:00:23]} 44. Ke2 {[%clk 0:01:05]}  Rf6 {[%clk 0:00:22]} 45. Qg3 {[%clk 0:01:05]}  Qxg3 {[%clk 0:00:16]} 46. fxg3 {[%clk 0:01:06]}  Rh6 {[%clk 0:00:15]} 47. Rf1 {[%clk 0:01:04]}  Rh2+ {[%clk 0:00:13]} 48. Rf2 {[%clk 0:01:05]}  Rxf2+ {[%clk 0:00:14]} 49. Kxf2 {[%clk 0:01:05]}  Kg6 {[%clk 0:00:14]} 50. Kf3 {[%clk 0:01:03]}  f5 {[%clk 0:00:13]} 51. Rf2 {[%clk 0:00:57]}  Bf6 {[%clk 0:00:13]} 52. Bc1 {[%clk 0:00:54]}  Ra1 {[%clk 0:00:12]} 53. Bb2 {[%clk 0:00:51]}  Rb1 {[%clk 0:00:12]} 54. Rc2 {[%clk 0:00:51]}  Bg5 {[%clk 0:00:11]} 55. Kf2 {[%clk 0:00:50]}  Rh1 {[%clk 0:00:10]} 56. Kg2 {[%clk 0:00:50]}  Re1 {[%clk 0:00:10]} 57. Bc1 {[%clk 0:00:45]}  Bxe3 {[%clk 0:00:09]} 58. Bxe3 {[%clk 0:00:45]}  Rxe3 {[%clk 0:00:10]} 59. Rc6 {[%clk 0:00:41]}  Kf6 {[%clk 0:00:11]} 0-1

[Event "December 5 Early 2023"]
[Site "https://www.chess.com"]
[Date "2023.12.05"]
[Round "1"]
[White "Maksimovic, Bojan"]
[Black "Herman, Matthew"]
[Result "1-0"]
[Board "37"]
[TimeControl "180+1"]
[WhiteFideId "14408120"]
[BlackFideId "2028964"]
[WhiteElo "2925"]
[BlackElo "2499"]
[WhiteTeam "BIH"]
[BlackTeam "USA"]
[WhiteClock "0:00:06"]
[BlackClock "0:00:07"]

1. e4 {[%clk 0:03:00]}  e5 {[%clk 0:02:59]} 2. Nf3 {[%clk 0:03:00]}  Nc6 {[%clk 0:02:59]} 3. c3 {[%clk 0:02:59]}  d5 {[%clk 0:02:51]} 4. Qa4 {[%clk 0:02:58]}  Bd7 {[%clk 0:02:40]} 5. exd5 {[%clk 0:02:57]}  Nd4 {[%clk 0:02:39]} 6. Qd1 {[%clk 0:02:57]}  Nxf3+ {[%clk 0:02:37]} 7. Qxf3 {[%clk 0:02:58]}  f5 {[%clk 0:02:33]} 8. Bc4 {[%clk 0:02:16]}  Nf6 {[%clk 0:02:32]} 9. d3 {[%clk 0:02:17]}  f4 {[%clk 0:02:19]} 10. h3 {[%clk 0:02:10]}  Bd6 {[%clk 0:02:07]} 11. Nd2 {[%clk 0:02:10]}  Qe7 {[%clk 0:01:54]} 12. Ne4 {[%clk 0:02:08]}  O-O-O {[%clk 0:01:54]} 13. a4 {[%clk 0:02:08]}  h6 {[%clk 0:01:44]} 14. a5 {[%clk 0:01:36]}  a6 {[%clk 0:01:43]} 15. Kd1 {[%clk 0:01:11]}  g5 {[%clk 0:01:40]} 16. Kc2 {[%clk 0:01:04]}  g4 {[%clk 0:01:38]} 17. Qe2 {[%clk 0:01:05]}  h5 {[%clk 0:01:23]} 18. h4 {[%clk 0:01:00]}  Bf5 {[%clk 0:01:15]} 19. Re1 {[%clk 0:00:53]}  Rhf8 {[%clk 0:01:07]} 20. Ng5 {[%clk 0:00:48]}  Rd7 {[%clk 0:00:46]} 21. g3 {[%clk 0:00:40]}  f3 {[%clk 0:00:17]} 22. Qd1 {[%clk 0:00:39]}  Re8 {[%clk 0:00:16]} 23. Ne4 {[%clk 0:00:35]}  Qg7 {[%clk 0:00:15]} 24. Bg5 {[%clk 0:00:33]}  Nh7 {[%clk 0:00:12]} 25. Be3 {[%clk 0:00:33]}  Qg6 {[%clk 0:00:12]} 26. Kb3 {[%clk 0:00:29]}  Nf6 {[%clk 0:00:09]} 27. Nxf6 {[%clk 0:00:25]}  Qxf6 {[%clk 0:00:10]} 28. Bg5 {[%clk 0:00:25]}  Qg6 {[%clk 0:00:10]} 29. Qd2 {[%clk 0:00:25]}  e4 {[%clk 0:00:10]} 30. dxe4 {[%clk 0:00:12]}  Bxe4 {[%clk 0:00:11]} 31. Qd4 {[%clk 0:00:13]}  Kb8 {[%clk 0:00:10]} 32. Be3 {[%clk 0:00:12]}  b6 {[%clk 0:00:10]} 33. axb6 {[%clk 0:00:13]}  cxb6 {[%clk 0:00:11]} 34. Bxa6 {[%clk 0:00:10]}  Bc5 {[%clk 0:00:11]} 35. Qa4 {[%clk 0:00:10]}  Bxd5+ {[%clk 0:00:12]} 36. Bc4 {[%clk 0:00:06]}  Qf6 {[%clk 0:00:10]} 37. Qxd7 {[%clk 0:00:05]}  Bxc4+ {[%clk 0:00:10]} 38. Kxc4 {[%clk 0:00:06]}  Re4+ {[%clk 0:00:10]} 39. Kb3 {[%clk 0:00:04]}  Qe5 {[%clk 0:00:08]} 40. Qd8+ {[%clk 0:00:03]}  Kb7 {[%clk 0:00:08]} 41. Qa8+ {[%clk 0:00:03]}  Kc7 {[%clk 0:00:09]} 42. Ra7+ {[%clk 0:00:04]}  Kd6 {[%clk 0:00:10]} 43. Rd1+ {[%clk 0:00:04]}  Ke6 {[%clk 0:00:10]} 44. Qe8+ {[%clk 0:00:04]}  Kf5 {[%clk 0:00:11]} 45. Rf7+ {[%clk 0:00:05]}  Kg6 {[%clk 0:00:07]} 46. Qg8+ {[%clk 0:00:06]} 1-0

[Event "December 5 Early 2023"]
[Site "https://www.chess.com"]
[Date "2023.12.05"]
[Round "1"]
[White "Chernomordik, Pavel"]
[Black "Ashraf, Artin"]
[Result "1-0"]
[Board "40"]
[TimeControl "180+1"]
[WhiteFideId "2804530"]
[BlackFideId "22514805"]
[WhiteElo "2496"]
[BlackElo "2923"]
[WhiteTeam "ISR"]
[BlackTeam "IRI"]
[WhiteClock "0:00:38"]
[BlackClock "0:00:34"]

1. e4 {[%clk 0:03:00]}  e5 {[%clk 0:02:57]} 2. Nf3 {[%clk 0:02:58]}  Nc6 {[%clk 0:02:56]} 3. Bb5 {[%clk 0:02:55]}  a6 {[%clk 0:02:55]} 4. Ba4 {[%clk 0:02:54]}  Nf6 {[%clk 0:02:55]} 5. Nc3 {[%clk 0:02:53]}  b5 {[%clk 0:02:51]} 6. Bb3 {[%clk 0:02:53]}  Bc5 {[%clk 0:02:51]} 7. d3 {[%clk 0:02:47]}  d6 {[%clk 0:02:48]} 8. a3 {[%clk 0:02:43]}  Bg4 {[%clk 0:02:45]} 9. h3 {[%clk 0:02:42]}  Bh5 {[%clk 0:02:45]} 10. g4 {[%clk 0:02:42]}  Bg6 {[%clk 0:02:45]} 11. Nd5 {[%clk 0:02:38]}  Nxd5 {[%clk 0:02:18]} 12. Bxd5 {[%clk 0:02:37]}  Qd7 {[%clk 0:02:18]} 13. Nh4 {[%clk 0:02:30]}  Nd4 {[%clk 0:02:17]} 14. Bxa8 {[%clk 0:02:28]}  c6 {[%clk 0:02:13]} 15. c3 {[%clk 0:02:26]}  Ne6 {[%clk 0:02:13]} 16. a4 {[%clk 0:02:18]}  O-O {[%clk 0:02:09]} 17. axb5 {[%clk 0:02:18]}  axb5 {[%clk 0:02:09]} 18. Nf5 {[%clk 0:02:05]}  Qc7 {[%clk 0:01:56]} 19. Bxc6 {[%clk 0:02:02]}  Bxf5 {[%clk 0:01:55]} 20. gxf5 {[%clk 0:01:58]}  Qxc6 {[%clk 0:01:54]} 21. fxe6 {[%clk 0:01:56]}  fxe6 {[%clk 0:01:54]} 22. Be3 {[%clk 0:01:55]}  d5 {[%clk 0:01:52]} 23. Qg4 {[%clk 0:01:49]}  d4 {[%clk 0:01:35]} 24. Rg1 {[%clk 0:01:34]}  g6 {[%clk 0:01:26]} 25. cxd4 {[%clk 0:01:23]}  Bb4+ {[%clk 0:01:24]} 26. Kf1 {[%clk 0:01:17]}  exd4 {[%clk 0:01:22]} 27. Bxd4 {[%clk 0:01:13]}  Qd7 {[%clk 0:01:14]} 28. e5 {[%clk 0:01:02]}  Qc6 {[%clk 0:01:07]} 29. Qe4 {[%clk 0:00:54]}  Qc2 {[%clk 0:01:01]} 30. Ra7 {[%clk 0:00:47]}  Qd1+ {[%clk 0:00:55]} 31. Kg2 {[%clk 0:00:45]}  Qh5 {[%clk 0:00:55]} 32. Qg4 {[%clk 0:00:39]}  Qh6 {[%clk 0:00:34]} 33. Qxe6+ {[%clk 0:00:38]} 1-0

[Event "December 5 Early 2023"]
[Site "https://www.chess.com"]
[Date "2023.12.05"]
[Round "1"]
[White "Nikologorsky, Matfei"]
[Black "Kovalenko, Igor"]
[Result "0-1"]
[Board "42"]
[TimeControl "180+1"]
[WhiteFideId "24102474"]
[BlackFideId "14117908"]
[WhiteElo "2493"]
[BlackElo "2916"]
[WhiteTeam "FID"]
[BlackTeam "UKR"]
[WhiteClock "0:00:37"]
[BlackClock "0:00:16"]

1. e4 {[%clk 0:03:00]}  c6 {[%clk 0:02:01]} 2. d4 {[%clk 0:02:59]}  d5 {[%clk 0:02:02]} 3. Nc3 {[%clk 0:02:59]}  dxe4 {[%clk 0:02:02]} 4. Nxe4 {[%clk 0:03:00]}  Nd7 {[%clk 0:02:02]} 5. Ng5 {[%clk 0:02:57]}  Ngf6 {[%clk 0:02:02]} 6. Bd3 {[%clk 0:02:56]}  e6 {[%clk 0:02:02]} 7. N1f3 {[%clk 0:02:50]}  Bd6 {[%clk 0:02:02]} 8. Qe2 {[%clk 0:02:46]}  h6 {[%clk 0:01:59]} 9. Ne4 {[%clk 0:02:46]}  Nxe4 {[%clk 0:01:59]} 10. Qxe4 {[%clk 0:02:46]}  Qc7 {[%clk 0:01:56]} 11. Bd2 {[%clk 0:02:42]}  b6 {[%clk 0:01:55]} 12. c4 {[%clk 0:02:31]}  Bb7 {[%clk 0:01:55]} 13. Qe2 {[%clk 0:02:27]}  g5 {[%clk 0:01:38]} 14. a4 {[%clk 0:02:18]}  a5 {[%clk 0:01:35]} 15. Rc1 {[%clk 0:02:07]}  c5 {[%clk 0:01:33]} 16. d5 {[%clk 0:02:05]}  O-O-O {[%clk 0:01:32]} 17. dxe6 {[%clk 0:01:57]}  fxe6 {[%clk 0:01:33]} 18. Be4 {[%clk 0:01:54]}  g4 {[%clk 0:01:30]} 19. Nh4 {[%clk 0:01:51]}  Rhg8 {[%clk 0:01:09]} 20. Bxb7+ {[%clk 0:01:36]}  Qxb7 {[%clk 0:01:09]} 21. O-O {[%clk 0:01:36]}  Be7 {[%clk 0:01:05]} 22. g3 {[%clk 0:01:27]}  Bxh4 {[%clk 0:01:05]} 23. gxh4 {[%clk 0:01:28]}  Rg6 {[%clk 0:00:39]} 24. Bc3 {[%clk 0:01:25]}  h5 {[%clk 0:00:37]} 25. Rfe1 {[%clk 0:01:24]}  Rf8 {[%clk 0:00:33]} 26. Qe4 {[%clk 0:01:20]}  Qxe4 {[%clk 0:00:32]} 27. Rxe4 {[%clk 0:01:21]}  Nb8 {[%clk 0:00:31]} 28. Rd1 {[%clk 0:01:09]}  Rd8 {[%clk 0:00:20]} 29. Rxd8+ {[%clk 0:01:08]}  Kxd8 {[%clk 0:00:21]} 30. Re5 {[%clk 0:01:08]}  Rh6 {[%clk 0:00:21]} 31. Rg5 {[%clk 0:01:06]}  Nc6 {[%clk 0:00:20]} 32. Rg7 {[%clk 0:01:05]}  e5 {[%clk 0:00:18]} 33. Kg2 {[%clk 0:00:59]}  Nd4 {[%clk 0:00:18]} 34. Rg5 {[%clk 0:00:57]}  Nf3 {[%clk 0:00:17]} 35. Rg8+ {[%clk 0:00:51]}  Kd7 {[%clk 0:00:17]} 36. Kg3 {[%clk 0:00:51]}  Ke6 {[%clk 0:00:17]} 37. Rb8 {[%clk 0:00:50]}  Kf5 {[%clk 0:00:18]} 38. Bd2 {[%clk 0:00:48]}  Rd6 {[%clk 0:00:16]} 39. Be3 {[%clk 0:00:46]}  Rd1 {[%clk 0:00:15]} 40. Rf8+ {[%clk 0:00:42]}  Ke4 {[%clk 0:00:16]} 41. Rxf3 {[%clk 0:00:37]}  Rg1# {[%clk 0:00:16]} 0-1

[Event "December 5 Early 2023"]
[Site "https://www.chess.com"]
[Date "2023.12.05"]
[Round "1"]
[White "Vasquez Schroeder, Rodrigo"]
[Black "Kopczynski, Michal"]
[Result "1-0"]
[Board "47"]
[TimeControl "180+1"]
[WhiteFideId "3400042"]
[BlackFideId "1124200"]
[WhiteElo "2906"]
[BlackElo "2486"]
[WhiteTeam "CHI"]
[BlackTeam "POL"]
[WhiteClock "0:00:05"]
[BlackClock "0:00:00"]

1. e4 {[%clk 0:03:00]}  b6 {[%clk 0:02:59]} 2. d4 {[%clk 0:02:59]}  Bb7 {[%clk 0:03:00]} 3. Bd3 {[%clk 0:03:00]}  e6 {[%clk 0:03:01]} 4. Nf3 {[%clk 0:03:00]}  Nf6 {[%clk 0:03:01]} 5. Qe2 {[%clk 0:02:58]}  d5 {[%clk 0:03:02]} 6. Nbd2 {[%clk 0:02:57]}  c5 {[%clk 0:03:01]} 7. dxc5 {[%clk 0:02:54]}  Bxc5 {[%clk 0:02:57]} 8. e5 {[%clk 0:02:48]}  Nfd7 {[%clk 0:02:56]} 9. Nb3 {[%clk 0:02:46]}  Be7 {[%clk 0:02:56]} 10. h4 {[%clk 0:02:44]}  Nc6 {[%clk 0:02:56]} 11. c3 {[%clk 0:02:44]}  Qc7 {[%clk 0:02:55]} 12. Bf4 {[%clk 0:02:43]}  O-O-O {[%clk 0:02:54]} 13. Nbd4 {[%clk 0:02:40]}  Rde8 {[%clk 0:02:45]} 14. O-O {[%clk 0:02:35]}  h6 {[%clk 0:02:40]} 15. Nb5 {[%clk 0:02:28]}  Qd8 {[%clk 0:02:34]} 16. h5 {[%clk 0:02:22]}  Nc5 {[%clk 0:02:16]} 17. Bc2 {[%clk 0:02:19]}  a6 {[%clk 0:02:06]} 18. Nbd4 {[%clk 0:02:18]}  Ne4 {[%clk 0:02:01]} 19. Nxc6 {[%clk 0:02:11]}  Bxc6 {[%clk 0:02:02]} 20. Nd4 {[%clk 0:02:12]}  Bb7 {[%clk 0:01:58]} 21. f3 {[%clk 0:02:10]}  Nc5 {[%clk 0:01:55]} 22. b4 {[%clk 0:02:08]}  Nd7 {[%clk 0:01:54]} 23. Bd3 {[%clk 0:02:08]}  Nb8 {[%clk 0:01:52]} 24. Rac1 {[%clk 0:02:04]}  Bg5 {[%clk 0:01:43]} 25. Bxg5 {[%clk 0:02:01]}  Qxg5 {[%clk 0:01:30]} 26. c4 {[%clk 0:01:56]}  Kd8 {[%clk 0:01:30]} 27. c5 {[%clk 0:01:50]}  Kd7 {[%clk 0:01:15]} 28. cxb6 {[%clk 0:01:45]}  Rc8 {[%clk 0:01:14]} 29. f4 {[%clk 0:01:44]}  Qg3 {[%clk 0:01:05]} 30. Nb3 {[%clk 0:01:18]}  Rxc1 {[%clk 0:00:50]} 31. Rxc1 {[%clk 0:01:19]}  Rc8 {[%clk 0:00:36]} 32. Nc5+ {[%clk 0:01:18]}  Ke7 {[%clk 0:00:34]} 33. Qf2 {[%clk 0:01:13]}  Qg4 {[%clk 0:00:27]} 34. Be2 {[%clk 0:01:08]}  Qf5 {[%clk 0:00:26]} 35. g4 {[%clk 0:01:08]}  Qh7 {[%clk 0:00:22]} 36. Bd3 {[%clk 0:01:07]}  Qg8 {[%clk 0:00:20]} 37. f5 {[%clk 0:01:06]}  Qd8 {[%clk 0:00:19]} 38. f6+ {[%clk 0:01:05]}  Kf8 {[%clk 0:00:19]} 39. fxg7+ {[%clk 0:00:59]}  Kxg7 {[%clk 0:00:20]} 40. Rf1 {[%clk 0:00:59]}  Qe7 {[%clk 0:00:17]} 41. Qe3 {[%clk 0:00:53]}  Nc6 {[%clk 0:00:14]} 42. Nxb7 {[%clk 0:00:38]}  Qxb7 {[%clk 0:00:15]} 43. Rf6 {[%clk 0:00:39]}  Rh8 {[%clk 0:00:13]} 44. g5 {[%clk 0:00:39]}  hxg5 {[%clk 0:00:11]} 45. Qxg5+ {[%clk 0:00:38]}  Kf8 {[%clk 0:00:12]} 46. Bg6 {[%clk 0:00:28]}  Qxb6+ {[%clk 0:00:09]} 47. Kg2 {[%clk 0:00:23]}  Nd8 {[%clk 0:00:06]} 48. Rf4 {[%clk 0:00:20]}  Rg8 {[%clk 0:00:04]} 49. Qf6 {[%clk 0:00:16]}  Ke8 {[%clk 0:00:03]} 50. Rf2 {[%clk 0:00:08]}  fxg6 {[%clk 0:00:03]} 51. h6 {[%clk 0:00:08]}  Qc7 {[%clk 0:00:04]} 52. a4 {[%clk 0:00:05]}  Qf7 {[%clk 0:00:04]} 53. Qg5 {[%clk 0:00:05]}  Qe7 {[%clk 0:00:04]} 54. Rf6 {[%clk 0:00:05]}  Nf7 {[%clk 0:00:03]} 55. h7 {[%clk 0:00:05]}  Rh8 {[%clk 0:00:02]} 56. Qxg6 {[%clk 0:00:06]}  Kd7 {[%clk 0:00:00]} 57. Rxf7 {[%clk 0:00:05]} 1-0